[Event "XIX Najdorf Memorial 2019"]
[Site "Warsaw"]
[Date "2019.07.12"]
[Round "7.7"]
[White "Godzwon, Iwo"]
[Black "Socko, Monika"]
[Result "0-1"]
[ECO "C49"]
[WhiteElo "2285"]
[BlackElo "2443"]
[Annotator "NA"]
[PlyCount "88"]
[EventDate "2019.07.06"]
[EventType "swiss"]
[EventCountry "POL"]
[SourceTitle "playchess.com"]
[Source "ChessBase"]
[SourceQuality "1"]
[TimeControl "40/5400+30:1800+30"]

1. e4 {[%emt 0:00:00]} e5 {[%emt 0:00:46]} 2. Nf3 {[%emt 0:00:00]} Nf6 {[%emt 0:00:04]} 3. Nc3 {[%emt 0:01:43]} Nc6 {[%emt 0:00:06]} 4. Bb5 {[%emt 0:00:36]} Bb4 {[%emt 0:00:16]} 5. O-O {[%emt 0:00:41]} O-O {[%emt 0:00:19]} 6. d3 {[%emt 0:00:31]} Bxc3 {[%emt 0:00:17]} 7. bxc3 {[%emt 0:00:04]} d6 {[%emt 0:00:06]} 8. Bxc6 {[%emt 0:07:43]} bxc6 {[%emt 0:00:04]} 9. h3 {[%emt 0:00:55]} Qe7 {[%emt 0:01:21]} 10. Qe2 {[%emt 0:09:05]} Bd7 {[%emt 0:06:58]} 11. Nd2 {[%emt 0:02:39]} Rab8 {[%emt 0:06:26]} 12. Nc4 {[%emt 0:09:29]} Be6 {[%emt 0:03:36]} 13. Na5 {[%emt 0:01:36]} Qd7 {[%emt 0:08:50]} 14. Bg5 {[%emt 0:02:40]} Ne8 {[%emt 0:05:10]} 15. c4 {[%emt 0:05:26]} Rb6 {[%emt 0:11:19]} 16. Nb3 {[%emt 0:05:34]} c5 {[%emt 0:02:23]} 17. a4 {[%emt 0:00:34]} Rb8 {[%emt 0:01:48]} 18. Bd2 {[%emt 0:02:49]} f5 {[%emt 0:10:57]} 19. exf5 {[%emt 0:04:18]} Rxf5 {[%emt 0:05:41]} 20. f4 {[%emt 0:00:25]} exf4 {[%emt 0:05:47]} 21. Bxf4 {[%emt 0:00:14]} Rf7 {[%emt 0:03:16]} 22. g4 {[%emt 0:09:24]} Nf6 {[%emt 0:02:05]} 23. Bg5 {[%emt 0:01:36]} Re8 {[%emt 0:00:42]} 24. Qg2 {[%emt 0:03:30]} Ref8 {[%emt 0:01:18]} 25. Rae1 {[%emt 0:02:37]} h6 {[%emt 0:00:47]} 26. Bxf6 {[%emt 0:02:28]} Rxf6 {[%emt 0:00:03]} 27. Rxf6 {[%emt 0:02:08]} Rxf6 {[%emt 0:00:02]} 28. Rf1 {[%emt 0:00:32]} Rxf1+ {[%emt 0:02:15]} 29. Kxf1 {[%emt 0:00:03]} Qxa4 {[%emt 0:01:13]} 30. Qa8+ {[%emt 0:00:04]} Kf7 {[%emt 0:00:04]} 31. Qb7 {[%emt 0:00:03]} h5 {[%emt 0:03:49]} 32. Qf3+ {[%emt 0:02:54]} Ke7 {[%emt 0:00:12]} 33. gxh5 {[%emt 0:00:05]} Qa2 {[%emt 0:01:08]} 34. Qe2 {[%emt 0:06:02]} a5 {[%emt 0:01:42]} 35. Qd2 {[%emt 0:01:09]} a4 {[%emt 0:00:27]} 36. Qg5+ {[%emt 0:00:04]} Ke8 {[%emt 0:00:52]} 37. Qxg7 {[%emt 0:07:53]} axb3 {[%emt 0:01:38]} 38. cxb3 {[%emt 0:00:01]} Qh2 {[%emt 0:03:50]} 39. h6 {[%emt 0:02:41]} Qxh3+ {[%emt 0:01:23]} 40. Kf2 {[%emt 0:00:00]} Qh2+ {[%emt 0:00:00]} 41. Ke3 {[%emt 0:02:25]} Qh3+ {[%emt 0:00:29]} 42. Kd2 {[%emt 0:00:06]} Bf5 {[%emt 0:03:12]} 43. Qg8+ {[%emt 0:00:16]} Ke7 {[%emt 0:00:04]} 44. Qg7+ {[%emt 0:00:40]} Ke6 {[%emt 0:00:05]} 0-1

[Event "XIX Najdorf Memorial 2019"]
[Site "Warsaw"]
[Date "2019.07.12"]
[Round "7.8"]
[White "Mosesov, Danylo"]
[Black "Jakubowski, Krzysztof"]
[Result "1-0"]
[ECO "B48"]
[WhiteElo "2353"]
[BlackElo "2528"]
[Annotator "ChessBase"]
[PlyCount "57"]
[EventDate "2019.07.06"]
[EventType "swiss"]
[EventCountry "POL"]
[SourceTitle "playchess.com"]
[Source "ChessBase"]
[SourceQuality "1"]
[TimeControl "40/5400+30:1800+30"]

1. e4 {[%emt 0:00:00]} c5 {[%emt 0:00:00]} 2. Nf3 {[%emt 0:00:00]} e6 {[%emt 0:00:00]} 3. d4 {[%emt 0:00:00]} cxd4 {[%emt 0:00:07]} 4. Nxd4 {[%emt 0:00:00]} Nc6 {[%emt 0:00:08]} 5. Nc3 {[%emt 0:00:00]} Qc7 {[%emt 0:00:06]} 6. Be3 {[%emt 0:00:00]} a6 {[%emt 0:00:10]} 7. Qf3 {[%emt 0:00:00]} Nf6 {[%emt 0:00:22]} 8. O-O-O {[%emt 0:00:13]} Ne5 {[%emt 0:00:23]} 9. Qg3 {[%emt 0:02:20]} b5 {[%emt 0:00:22]} 10. f4 {[%emt 0:08:24]} Neg4 {[%emt 0:00:22]} 11. Bg1 {[%emt 0:15:34]} b4 {[%emt 0:01:36]} 12. Na4 {[%emt 0:00:36]} h5 {[%emt 0:00:30]} 13. Bd3 {[%emt 0:01:19]} Bb7 {[%emt 0:06:40]} 14. h3 {[%emt 0:06:50]} Nh6 {[%emt 0:06:29]} 15. Re1 {[%emt 0:01:30]} g6 {[%emt 0:27:08]} 16. Nb3 {[%emt 0:04:48]} Be7 {[%emt 0:03:21]} 17. Bd4 {[%emt 0:04:45]} h4 {[%emt 0:26:14]} 18. Qf2 {[%emt 0:01:51]} d6 {[%emt 0:01:31]} 19. Nb6 {[%emt 0:09:11]} Rd8 {[%emt 0:02:10]} 20. Nc4 {[%emt 0:03:01]} Rd7 {[%emt 0:01:41]} 21. e5 {[%emt 0:09:52]} dxe5 {[%emt 0:00:23]} 22. fxe5 {[%emt 0:01:43]} Nh5 {[%emt 0:06:16]} 23. Nd6+ {[%emt 0:00:25]} Kf8 {[%emt 0:00:05]} 24. Nc5 {[%emt 0:00:39]} Nf5 {[%emt 0:04:29]} 25. Bxf5 {[%emt 0:01:03]} gxf5 {[%emt 0:00:05]} 26. Ncxb7 {[%emt 0:00:18]} Ng3 {[%emt 0:00:22]} 27. Rhg1 {[%emt 0:00:37]} Qc6 {[%emt 0:00:56]} 28. Qf3 {[%emt 0:01:52]} Ne4 {[%emt 0:00:06]} 29. Rxe4 {[%emt 0:02:47]} 1-0

[Event "XIX Najdorf Memorial 2019"]
[Site "Warsaw"]
[Date "2019.07.12"]
[Round "7.8"]
[White "Piotrowski, Przemyslaw"]
[Black "Grib, Roman"]
[Result "1/2-1/2"]
[ECO "D79"]
[WhiteElo "2273"]
[BlackElo "2421"]
[Annotator "NA"]
[PlyCount "65"]
[EventDate "2019.07.06"]
[EventType "swiss"]
[EventCountry "POL"]
[SourceTitle "playchess.com"]
[Source "ChessBase"]
[SourceQuality "1"]
[TimeControl "40/5400+30:1800+30"]

1. Nf3 {[%emt 0:00:00]} Nf6 {[%emt 0:00:00]} 2. c4 {[%emt 0:00:00]} c6 {[%emt 0:00:00]} 3. d4 {[%emt 0:00:14]} g6 {[%emt 0:00:09]} 4. g3 {[%emt 0:00:05]} Bg7 {[%emt 0:00:08]} 5. Bg2 {[%emt 0:00:04]} d5 {[%emt 0:00:11]} 6. cxd5 {[%emt 0:00:10]} cxd5 {[%emt 0:00:05]} 7. O-O {[%emt 0:00:04]} O-O {[%emt 0:00:10]} 8. Nc3 {[%emt 0:00:03]} Ne4 {[%emt 0:00:06]} 9. Nd2 {[%emt 0:15:03]} Nxc3 {[%emt 0:32:22]} 10. bxc3 {[%emt 0:00:22]} Nc6 {[%emt 0:00:01]} 11. e4 {[%emt 0:05:31]} Be6 {[%emt 0:00:06]} 12. Qf3 {[%emt 0:13:10]} dxe4 {[%emt 0:01:27]} 13. Nxe4 {[%emt 0:02:38]} Bd5 {[%emt 0:07:16]} 14. Nf6+ {[%emt 0:05:36]} Bxf6 {[%emt 0:00:06]} 15. Qxd5 {[%emt 0:00:03]} Qxd5 {[%emt 0:04:12]} 16. Bxd5 {[%emt 0:00:02]} Rac8 {[%emt 0:05:06]} 17. Rb1 {[%emt 0:20:10]} Na5 {[%emt 0:09:27]} 18. Bxb7 {[%emt 0:03:26]} Rxc3 {[%emt 0:07:08]} 19. Bd2 {[%emt 0:00:36]} Ra3 {[%emt 0:00:03]} 20. Bd5 {[%emt 0:02:07]} Ra4 {[%emt 0:09:28]} 21. Rb5 {[%emt 0:28:46]} Nc4 {[%emt 0:02:50]} 22. Bb4 {[%emt 0:00:04]} Nd6 {[%emt 0:15:27]} 23. Bxd6 {[%emt 0:00:01]} exd6 {[%emt 0:00:04]} 24. Rd1 {[%emt 0:00:38]} Rxd4 {[%emt 0:00:11]} 25. Rxd4 {[%emt 0:00:03]} Bxd4 {[%emt 0:00:01]} 26. Rb7 {[%emt 0:00:14]} Kg7 {[%emt 0:00:45]} 27. Kg2 {[%emt 0:00:05]} g5 {[%emt 0:00:28]} 28. f4 {[%emt 0:00:33]} gxf4 {[%emt 0:00:36]} 29. gxf4 {[%emt 0:00:01]} Kg6 {[%emt 0:00:20]} 30. Rd7 {[%emt 0:01:47]} Bc5 {[%emt 0:00:05]} 31. Kf3 {[%emt 0:00:06]} f5 {[%emt 0:03:35]} 32. h3 {[%emt 0:00:01]} a5 {[%emt 0:02:29]} 33. a4 {[%emt 0:00:38]} 1/2-1/2

[Event "XIX Najdorf Memorial 2019"]
[Site "Warsaw"]
[Date "2019.07.12"]
[Round "7.9"]
[White "Ali Marandi, Cemil Can"]
[Black "Tomaszewski, Kacper"]
[Result "1-0"]
[ECO "A05"]
[WhiteElo "2527"]
[BlackElo "2346"]
[Annotator "ChessBase"]
[PlyCount "137"]
[EventDate "2019.07.06"]
[EventType "swiss"]
[EventCountry "POL"]
[SourceTitle "playchess.com"]
[Source "ChessBase"]
[SourceQuality "1"]
[TimeControl "40/5400+30:1800+30"]

1. Nf3 {[%emt 0:00:52]} Nf6 {[%emt 0:00:54]} 2. c4 {[%emt 0:00:18]} g6 {[%emt 0:00:05]} 3. Nc3 {[%emt 0:00:13]} Bg7 {[%emt 0:00:06]} 4. e4 {[%emt 0:00:37]} e5 {[%emt 0:00:05]} 5. Nxe5 {[%emt 0:02:59]} O-O {[%emt 0:00:16]} 6. Nf3 {[%emt 0:02:03]} Re8 {[%emt 0:00:08]} 7. d3 {[%emt 0:01:10]} d5 {[%emt 0:00:05]} 8. cxd5 {[%emt 0:00:45]} Nxd5 {[%emt 0:00:05]} 9. Nxd5 {[%emt 0:00:32]} Qxd5 {[%emt 0:00:07]} 10. Be2 {[%emt 0:00:09]} Qd6 {[%emt 0:00:19]} 11. O-O {[%emt 0:07:02]} c5 {[%emt 0:00:07]} 12. Be3 {[%emt 0:07:56]} Nc6 {[%emt 0:00:18]} 13. Rc1 {[%emt 0:00:13]} b6 {[%emt 0:00:07]} 14. Qd2 {[%emt 0:03:43]} Be6 {[%emt 0:00:09]} 15. b3 {[%emt 0:04:31]} Rad8 {[%emt 0:00:29]} 16. Rfd1 {[%emt 0:06:21]} Qf8 {[%emt 0:11:05]} 17. h3 {[%emt 0:06:39]} h6 {[%emt 0:04:05]} 18. Qc2 {[%emt 0:08:13]} Kh7 {[%emt 0:01:58]} 19. Bd2 {[%emt 0:06:15]} f5 {[%emt 0:15:47]} 20. Bc3 {[%emt 0:04:16]} Bc8 {[%emt 0:00:41]} 21. Bxg7 {[%emt 0:01:22]} Qxg7 {[%emt 0:01:14]} 22. a3 {[%emt 0:00:29]} Nd4 {[%emt 0:03:02]} 23. Nxd4 {[%emt 0:01:03]} Rxd4 {[%emt 0:00:07]} 24. b4 {[%emt 0:07:14]} Bd7 {[%emt 0:11:07]} 25. Qa2 {[%emt 0:03:15]} Ba4 {[%emt 0:13:05]} 26. Rd2 {[%emt 0:00:26]} fxe4 {[%emt 0:14:16]} 27. dxe4 {[%emt 0:00:24]} Rdxe4 {[%emt 0:00:19]} 28. bxc5 {[%emt 0:01:03]} bxc5 {[%emt 0:00:32]} 29. Rxc5 {[%emt 0:01:12]} Bb3 {[%emt 0:03:16]} 30. Qxb3 {[%emt 0:00:38]} Rxe2 {[%emt 0:00:05]} 31. Rxe2 {[%emt 0:00:24]} Rxe2 {[%emt 0:00:05]} 32. Qc3 {[%emt 0:03:54]} Re7 {[%emt 0:00:28]} 33. Qxg7+ {[%emt 0:01:07]} Kxg7 {[%emt 0:00:04]} 34. Rc6 {[%emt 0:00:06]} h5 {[%emt 0:01:19]} 35. Ra6 {[%emt 0:00:07]} Kh6 {[%emt 0:00:30]} 36. h4 {[%emt 0:00:50]} Kg7 {[%emt 0:00:11]} 37. g3 {[%emt 0:00:06]} Kf7 {[%emt 0:00:33]} 38. Kg2 {[%emt 0:00:21]} Kg7 {[%emt 0:00:05]} 39. a4 {[%emt 0:00:08]} Kh6 {[%emt 0:01:40]} 40. a5 {[%emt 0:00:00]} Kg7 {[%emt 0:00:00]} 41. Rc6 {[%emt 0:03:00]} Kf7 {[%emt 0:13:41]} 42. f4 {[%emt 0:08:14]} Kg7 {[%emt 0:07:10]} 43. a6 {[%emt 0:03:44]} Rd7 {[%emt 0:03:05]} 44. g4 {[%emt 0:03:10]} hxg4 {[%emt 0:19:14]} 45. Kg3 {[%emt 0:00:19]} Rd1 {[%emt 0:02:57]} 46. Rc7+ {[%emt 0:04:38]} Kf6 {[%emt 0:00:07]} 47. Rxa7 {[%emt 0:00:51]} Rg1+ {[%emt 0:00:06]} 48. Kh2 {[%emt 0:01:37]} Ra1 {[%emt 0:00:06]} 49. Ra8 {[%emt 0:00:05]} Kg7 {[%emt 0:00:14]} 50. a7 {[%emt 0:00:59]} Ra3 {[%emt 0:00:36]} 51. h5 {[%emt 0:04:05]} gxh5 {[%emt 0:02:22]} 52. f5 {[%emt 0:00:13]} h4 {[%emt 0:02:40]} 53. f6+ {[%emt 0:00:13]} Kh7 {[%emt 0:00:25]} 54. f7 {[%emt 0:02:20]} Rh3+ {[%emt 0:00:03]} 55. Kg2 {[%emt 0:01:19]} Rg3+ {[%emt 0:00:05]} 56. Kf2 {[%emt 0:00:21]} Rf3+ {[%emt 0:00:08]} 57. Ke2 {[%emt 0:00:04]} Rxf7 {[%emt 0:00:03]} 58. Rh8+ {[%emt 0:00:05]} Kxh8 {[%emt 0:00:06]} 59. a8=Q+ {[%emt 0:00:04]} Kg7 {[%emt 0:02:25]} 60. Qe4 {[%emt 0:00:51]} Kh8 {[%emt 0:00:37]} 61. Qxg4 {[%emt 0:00:41]} Rh7 {[%emt 0:00:38]} 62. Qh3 {[%emt 0:00:22]} Kg8 {[%emt 0:00:22]} 63. Kf3 {[%emt 0:00:15]} Kg7 {[%emt 0:02:04]} 64. Kf4 {[%emt 0:00:17]} Rh6 {[%emt 0:00:12]} 65. Qd7+ {[%emt 0:00:35]} Kg6 {[%emt 0:00:28]} 66. Qf5+ {[%emt 0:00:11]} Kg7 {[%emt 0:00:05]} 67. Kg5 {[%emt 0:00:07]} Rh7 {[%emt 0:00:30]} 68. Qf6+ {[%emt 0:00:06]} Kg8 {[%emt 0:00:05]} 69. Kg6 {[%emt 0:00:04]} 1-0

[Event "XIX Najdorf Memorial 2019"]
[Site "Warsaw"]
[Date "2019.07.12"]
[Round "7.9"]
[White "Chomczyk, Marek"]
[Black "Roseneck, Jonas"]
[Result "0-1"]
[ECO "C47"]
[WhiteElo "2270"]
[BlackElo "2398"]
[Annotator "NA"]
[PlyCount "108"]
[EventDate "2019.07.06"]
[EventType "swiss"]
[EventCountry "POL"]
[SourceTitle "playchess.com"]
[Source "ChessBase"]
[SourceQuality "1"]
[TimeControl "40/5400+30:1800+30"]

1. a3 {[%emt 0:00:00]} e5 {[%emt 0:00:00]} 2. e4 {[%emt 0:00:00]} Nf6 {[%emt 0:00:00]} 3. Nc3 {[%emt 0:00:00]} Nc6 {[%emt 0:00:00]} 4. Nf3 {[%emt 0:00:25]} d5 {[%emt 0:00:42]} 5. exd5 {[%emt 0:10:12]} Nxd5 {[%emt 0:00:02]} 6. Nxd5 {[%emt 0:00:23]} Qxd5 {[%emt 0:00:21]} 7. d3 {[%emt 0:00:09]} g6 {[%emt 0:24:54]} 8. Be2 {[%emt 0:13:31]} Bg7 {[%emt 0:00:28]} 9. O-O {[%emt 0:00:11]} O-O {[%emt 0:00:11]} 10. Re1 {[%emt 0:00:52]} Bf5 {[%emt 0:12:54]} 11. Be3 {[%emt 0:09:13]} h6 {[%emt 0:01:24]} 12. Rc1 {[%emt 0:15:29]} Rad8 {[%emt 0:01:27]} 13. Nd2 {[%emt 0:01:22]} Nd4 {[%emt 0:06:03]} 14. Bg4 {[%emt 0:01:03]} Bxg4 {[%emt 0:08:15]} 15. Qxg4 {[%emt 0:00:11]} Nf5 {[%emt 0:00:15]} 16. Qe4 {[%emt 0:05:48]} Nxe3 {[%emt 0:05:27]} 17. Qxe3 {[%emt 0:03:02]} a5 {[%emt 0:04:04]} 18. a4 {[%emt 0:07:06]} Rfe8 {[%emt 0:00:26]} 19. Re2 {[%emt 0:05:08]} e4 {[%emt 0:06:49]} 20. dxe4 {[%emt 0:05:53]} Bxb2 {[%emt 0:03:16]} 21. Rf1 {[%emt 0:03:56]} Qc6 {[%emt 0:03:25]} 22. Qb3 {[%emt 0:00:39]} Bg7 {[%emt 0:02:21]} 23. c4 {[%emt 0:07:42]} Rd4 {[%emt 0:02:14]} 24. Rfe1 {[%emt 0:00:08]} Red8 {[%emt 0:01:01]} 25. Nf3 {[%emt 0:00:10]} Rxc4 {[%emt 0:02:05]} 26. e5 {[%emt 0:00:47]} Rb4 {[%emt 0:01:52]} 27. Qe3 {[%emt 0:00:43]} Rxa4 {[%emt 0:00:26]} 28. h4 {[%emt 0:00:24]} Rc4 {[%emt 0:06:56]} 29. h5 {[%emt 0:02:39]} g5 {[%emt 0:01:32]} 30. Qb3 {[%emt 0:05:07]} Re8 {[%emt 0:03:16]} 31. Qd3 {[%emt 0:01:18]} Rc1 {[%emt 0:00:13]} 32. Rxc1 {[%emt 0:01:14]} Qxc1+ {[%emt 0:00:01]} 33. Re1 {[%emt 0:00:05]} Qc6 {[%emt 0:00:43]} 34. Nd4 {[%emt 0:01:15]} Qd5 {[%emt 0:00:01]} 35. e6 {[%emt 0:00:45]} Rxe6 {[%emt 0:00:44]} 36. Rxe6 {[%emt 0:00:32]} fxe6 {[%emt 0:00:02]} 37. Qg6 {[%emt 0:00:08]} Qxd4 {[%emt 0:00:13]} 38. Qxe6+ {[%emt 0:00:33]} Kf8 {[%emt 0:00:47]} 39. Qc8+ {[%emt 0:00:07]} Ke7 {[%emt 0:00:58]} 40. Qxc7+ {[%emt 0:00:00]} Qd7 {[%emt 0:00:00]} 41. Qxa5 {[%emt 0:00:49]} Qd1+ {[%emt 0:01:21]} 42. Kh2 {[%emt 0:00:04]} Qxh5+ {[%emt 0:00:02]} 43. Kg1 {[%emt 0:00:16]} Qd1+ {[%emt 0:00:04]} 44. Kh2 {[%emt 0:00:04]} Qd6+ {[%emt 0:00:17]} 45. g3 {[%emt 0:00:08]} Be5 {[%emt 0:02:16]} 46. Qb5 {[%emt 0:00:25]} b6 {[%emt 0:00:16]} 47. Qb1 {[%emt 0:00:06]} Qf6 {[%emt 0:00:34]} 48. Kg2 {[%emt 0:04:28]} Bd4 {[%emt 0:00:36]} 49. Qe4+ {[%emt 0:00:08]} Kd6 {[%emt 0:00:58]} 50. f3 {[%emt 0:00:06]} Qe5 {[%emt 0:00:15]} 51. Qb7 {[%emt 0:00:12]} Qe2+ {[%emt 0:00:13]} 52. Kh3 {[%emt 0:00:04]} Qe6+ {[%emt 0:02:20]} 53. Kg2 {[%emt 0:00:10]} h5 {[%emt 0:00:34]} 54. Qh7 {[%emt 0:00:15]} Qe2+ {[%emt 0:00:12]} 0-1

[Event "XIX Najdorf Memorial 2019"]
[Site "Warsaw"]
[Date "2019.07.12"]
[Round "7.10"]
[White "Gukesh D"]
[Black "Oglaza, Oskar"]
[Result "1-0"]
[ECO "A22"]
[WhiteElo "2520"]
[BlackElo "2345"]
[Annotator "ChessBase"]
[PlyCount "119"]
[EventDate "2019.07.06"]
[EventType "swiss"]
[EventCountry "POL"]
[SourceTitle "playchess.com"]
[Source "ChessBase"]
[SourceQuality "1"]
[TimeControl "40/5400+30:1800+30"]

1. c4 {[%emt 0:00:00]} e5 {[%emt 0:00:00]} 2. Nc3 {[%emt 0:00:12]} Nf6 {[%emt 0:00:00]} 3. g3 {[%emt 0:00:23]} Bb4 {[%emt 0:00:02]} 4. e4 {[%emt 0:00:11]} O-O {[%emt 0:02:00]} 5. Nge2 {[%emt 0:00:17]} d6 {[%emt 0:11:54]} 6. Bg2 {[%emt 0:01:22]} Nc6 {[%emt 0:07:37]} 7. h3 {[%emt 0:08:25]} Nd4 {[%emt 0:06:10]} 8. O-O {[%emt 0:01:53]} Re8 {[%emt 0:04:55]} 9. d3 {[%emt 0:01:49]} Nxe2+ {[%emt 0:09:21]} 10. Qxe2 {[%emt 0:00:32]} c6 {[%emt 0:00:17]} 11. f4 {[%emt 0:22:24]} exf4 {[%emt 0:09:31]} 12. gxf4 {[%emt 0:04:41]} d5 {[%emt 0:05:08]} 13. cxd5 {[%emt 0:04:40]} Nxd5 {[%emt 0:17:25]} 14. Bd2 {[%emt 0:02:53]} Bc5+ {[%emt 0:01:34]} 15. Kh2 {[%emt 0:00:12]} Nb4 {[%emt 0:00:32]} 16. a3 {[%emt 0:12:49]} Nc2 {[%emt 0:02:52]} 17. Rab1 {[%emt 0:05:06]} Nd4 {[%emt 0:02:31]} 18. Qd1 {[%emt 0:00:08]} f5 {[%emt 0:07:17]} 19. b4 {[%emt 0:03:54]} Bf8 {[%emt 0:03:21]} 20. Be3 {[%emt 0:07:23]} Be6 {[%emt 0:02:06]} 21. Qd2 {[%emt 0:05:41]} Qd7 {[%emt 0:00:16]} 22. Qf2 {[%emt 0:01:04]} Red8 {[%emt 0:00:24]} 23. Rfd1 {[%emt 0:01:21]} a5 {[%emt 0:03:16]} 24. Na4 {[%emt 0:01:00]} Ra6 {[%emt 0:00:03]} 25. bxa5 {[%emt 0:02:56]} Nb5 {[%emt 0:03:03]} 26. Bb6 {[%emt 0:01:00]} Re8 {[%emt 0:00:43]} 27. Nc5 {[%emt 0:00:51]} Bxc5 {[%emt 0:00:08]} 28. Qxc5 {[%emt 0:00:17]} Qe7 {[%emt 0:00:20]} 29. Rbc1 {[%emt 0:05:09]} Qh4 {[%emt 0:00:43]} 30. Qe3 {[%emt 0:01:13]} Bd5 {[%emt 0:00:54]} 31. Qg3 {[%emt 0:02:54]} Qxg3+ {[%emt 0:00:11]} 32. Kxg3 {[%emt 0:00:02]} fxe4 {[%emt 0:00:23]} 33. dxe4 {[%emt 0:00:11]} Bxe4 {[%emt 0:00:02]} 34. a4 {[%emt 0:01:33]} Na3 {[%emt 0:01:15]} 35. Rc3 {[%emt 0:02:03]} Bxg2 {[%emt 0:00:32]} 36. Kxg2 {[%emt 0:00:01]} Re2+ {[%emt 0:00:10]} 37. Kf3 {[%emt 0:00:32]} Ra2 {[%emt 0:00:29]} 38. Rd8+ {[%emt 0:00:23]} Kf7 {[%emt 0:00:04]} 39. Rd7+ {[%emt 0:00:06]} Kg6 {[%emt 0:01:09]} 40. Rxb7 {[%emt 0:00:00]} Nc2 {[%emt 0:00:00]} 41. Rxc6+ {[%emt 0:06:38]} Kh5 {[%emt 0:00:20]} 42. Rxg7 {[%emt 0:11:18]} Nd4+ {[%emt 0:04:21]} 43. Bxd4 {[%emt 0:00:02]} Rxc6 {[%emt 0:00:06]} 44. Rg5+ {[%emt 0:00:07]} Kh4 {[%emt 0:00:05]} 45. Bf2+ {[%emt 0:00:03]} Rxf2+ {[%emt 0:00:04]} 46. Kxf2 {[%emt 0:00:03]} Kxh3 {[%emt 0:01:29]} 47. Ke3 {[%emt 0:06:57]} h6 {[%emt 0:13:25]} 48. Rg8 {[%emt 0:02:40]} Rc3+ {[%emt 0:07:04]} 49. Ke2 {[%emt 0:00:45]} Rc5 {[%emt 0:01:52]} 50. a6 {[%emt 0:02:31]} Ra5 {[%emt 0:00:16]} 51. Ra8 {[%emt 0:00:26]} h5 {[%emt 0:05:27]} 52. a7 {[%emt 0:00:19]} Rxa4 {[%emt 0:00:45]} 53. f5 {[%emt 0:00:17]} Ra6 {[%emt 0:02:01]} 54. f6 {[%emt 0:01:15]} Re6+ {[%emt 0:00:06]} 55. Kd3 {[%emt 0:00:04]} Rd6+ {[%emt 0:00:10]} 56. Ke4 {[%emt 0:00:22]} Rd7 {[%emt 0:00:27]} 57. Kf5 {[%emt 0:00:11]} h4 {[%emt 0:00:11]} 58. Ke6 {[%emt 0:00:03]} Rb7 {[%emt 0:00:07]} 59. f7 {[%emt 0:00:12]} Rb6+ {[%emt 0:00:04]} 60. Kd5 {[%emt 0:00:13]} 1-0

[Event "XIX Najdorf Memorial 2019"]
[Site "Warsaw"]
[Date "2019.07.12"]
[Round "7.10"]
[White "Goluch, Piotr"]
[Black "Jaskolka, Tomasz"]
[Result "1/2-1/2"]
[ECO "D79"]
[WhiteElo "2386"]
[BlackElo "2236"]
[Annotator "NA"]
[PlyCount "139"]
[EventDate "2019.07.06"]
[EventType "swiss"]
[EventCountry "POL"]
[SourceTitle "playchess.com"]
[Source "ChessBase"]
[SourceQuality "1"]
[TimeControl "40/5400+30:1800+30"]

1. d4 {[%emt 0:00:00]} Nf6 {[%emt 0:00:00]} 2. Nf3 {[%emt 0:00:00]} g6 {[%emt 0:00:00]} 3. c4 {[%emt 0:00:17]} Bg7 {[%emt 0:00:00]} 4. g3 {[%emt 0:00:06]} c6 {[%emt 0:00:00]} 5. Bg2 {[%emt 0:00:24]} d5 {[%emt 0:00:00]} 6. O-O {[%emt 0:01:31]} O-O {[%emt 0:00:54]} 7. cxd5 {[%emt 0:00:32]} cxd5 {[%emt 0:00:06]} 8. Ne5 {[%emt 0:00:04]} Nfd7 {[%emt 0:04:48]} 9. f4 {[%emt 0:00:16]} Nxe5 {[%emt 0:00:47]} 10. fxe5 {[%emt 0:09:29]} f6 {[%emt 0:07:42]} 11. exf6 {[%emt 0:04:50]} Rxf6 {[%emt 0:03:47]} 12. Bf4 {[%emt 0:00:56]} e6 {[%emt 0:10:35]} 13. Nc3 {[%emt 0:07:36]} Nc6 {[%emt 0:01:50]} 14. e3 {[%emt 0:03:15]} g5 {[%emt 0:00:46]} 15. Be5 {[%emt 0:03:15]} Rxf1+ {[%emt 0:01:17]} 16. Qxf1 {[%emt 0:00:03]} Nxe5 {[%emt 0:03:54]} 17. dxe5 {[%emt 0:00:04]} Qb6 {[%emt 0:08:38]} 18. Qd3 {[%emt 0:11:38]} Bd7 {[%emt 0:27:58]} 19. Rf1 {[%emt 0:10:28]} Bxe5 {[%emt 0:06:16]} 20. Nxd5 {[%emt 0:03:21]} exd5 {[%emt 0:00:21]} 21. Qxd5+ {[%emt 0:05:01]} Qe6 {[%emt 0:00:06]} 22. Rd1 {[%emt 0:00:10]} Qxd5 {[%emt 0:08:23]} 23. Rxd5 {[%emt 0:00:05]} Bxb2 {[%emt 0:00:03]} 24. Rxd7 {[%emt 0:00:06]} Rf8 {[%emt 0:03:38]} 25. Bxb7 {[%emt 0:01:28]} Bc1 {[%emt 0:00:44]} 26. Re7 {[%emt 0:00:05]} Ba3 {[%emt 0:00:22]} 27. Bd5+ {[%emt 0:04:49]} Kh8 {[%emt 0:00:03]} 28. Rc7 {[%emt 0:00:27]} Bd6 {[%emt 0:02:53]} 29. Rc6 {[%emt 0:00:05]} Bb4 {[%emt 0:00:06]} 30. Kg2 {[%emt 0:01:11]} Bd2 {[%emt 0:01:14]} 31. Re6 {[%emt 0:00:34]} g4 {[%emt 0:05:58]} 32. Re7 {[%emt 0:08:26]} h5 {[%emt 0:01:04]} 33. Bc4 {[%emt 0:00:57]} Rc8 {[%emt 0:00:45]} 34. Bd3 {[%emt 0:01:21]} Rc3 {[%emt 0:00:22]} 35. Bg6 {[%emt 0:00:04]} Bxe3 {[%emt 0:00:33]} 36. Rh7+ {[%emt 0:01:05]} Kg8 {[%emt 0:00:03]} 37. Rxh5 {[%emt 0:00:16]} Rc1 {[%emt 0:00:59]} 38. h3 {[%emt 0:01:29]} Rg1+ {[%emt 0:00:26]} 39. Kh2 {[%emt 0:00:04]} gxh3 {[%emt 0:01:22]} 40. Be4 {[%emt 0:00:00]} Rd1 {[%emt 0:00:00]} 41. Kxh3 {[%emt 0:00:15]} Kg7 {[%emt 0:01:27]} 42. Rf5 {[%emt 0:00:57]} Rd2 {[%emt 0:01:05]} 43. Rf3 {[%emt 0:00:43]} Bb6 {[%emt 0:00:29]} 44. a4 {[%emt 0:00:06]} Rd4 {[%emt 0:00:49]} 45. Bc2 {[%emt 0:01:46]} Rc4 {[%emt 0:00:13]} 46. Bb3 {[%emt 0:00:02]} Re4 {[%emt 0:00:10]} 47. Rf7+ {[%emt 0:00:37]} Kg6 {[%emt 0:01:05]} 48. Rf3 {[%emt 0:08:34]} Rb4 {[%emt 0:00:29]} 49. Kg2 {[%emt 0:03:07]} Rd4 {[%emt 0:00:30]} 50. Bc2+ {[%emt 0:00:45]} Kg7 {[%emt 0:00:15]} 51. Kh3 {[%emt 0:00:17]} Rc4 {[%emt 0:00:28]} 52. Bb3 {[%emt 0:00:15]} Re4 {[%emt 0:02:13]} 53. Rd3 {[%emt 0:00:31]} Rd4 {[%emt 0:00:42]} 54. Rc3 {[%emt 0:00:05]} Re4 {[%emt 0:01:03]} 55. Bc2 {[%emt 0:00:12]} Re5 {[%emt 0:04:08]} 56. Rb3 {[%emt 0:00:55]} Re2 {[%emt 0:00:39]} 57. Bb1 {[%emt 0:02:18]} Re3 {[%emt 0:02:06]} 58. Rb5 {[%emt 0:00:21]} Ra3 {[%emt 0:03:40]} 59. Rb4 {[%emt 0:00:03]} Bc7 {[%emt 0:02:19]} 60. Rg4+ {[%emt 0:00:03]} Kf6 {[%emt 0:00:08]} 61. Rg6+ {[%emt 0:00:44]} Kf7 {[%emt 0:00:13]} 62. Rg4 {[%emt 0:00:39]} Kf6 {[%emt 0:00:31]} 63. Kg2 {[%emt 0:03:10]} Ra1 {[%emt 0:00:31]} 64. Bc2 {[%emt 0:01:17]} Ra3 {[%emt 0:00:53]} 65. Kf2 {[%emt 0:00:58]} Rc3 {[%emt 0:02:23]} 66. Bd1 {[%emt 0:00:05]} Bb6+ {[%emt 0:00:29]} 67. Kf1 {[%emt 0:01:18]} Rd3 {[%emt 0:02:09]} 68. Ke2 {[%emt 0:00:41]} Rd4 {[%emt 0:00:22]} 69. Rg8 {[%emt 0:00:15]} Rd8 {[%emt 0:00:07]} 70. Rg4 {[%emt 0:00:18]} 1/2-1/2